[Event "Slovakia Open 2022"]
[Site "Bratislava"]
[Date "2022.10.01"]
[Round "4.14"]
[White "Mizicka, Matus"]
[Black "Vadila, Ondrej"]
[Result "0-1"]
[ECO "A45"]
[WhiteElo "1975"]
[BlackElo "2178"]
[Annotator "TA"]
[PlyCount "162"]
[EventDate "2022.09.30"]
[EventCountry "SVK"]
[SourceTitle "playchess.com"]
[Source "ChessBase"]
[SourceQuality "1"]
[TimeControl "2700+10"]

{[%evp 9,162,113,288,282,296,293,333,332,402,371,348,350,425,390,524,506,593,588,566,517,531,510,546,516,586,492,476,406,400,303,300,298,307,262,262,244,258,225,236,220,258,248,260,264,291,270,291,272,368,380,391,386,403,396,554,553,540,493,576,335,484,476,637,635,616,445,422,418,664,658,631,625,617,613,583,580,631,359,664,0,0,8,83,0,0,-29974,-29975,-29975,-29975,-29973,-5089,-29975,-29976,-29976,-29977,-29964,-29966,-29985,-29986,-29986,-29987,-29990,-29989,-29991,-29990,-29990,-29986,-29987,-29978,-29980,-29981,-29985,-29986,-29989,-29986,-29988,-29989,-29989,-29979,-29988,-29987,-29991,-29992,-29992,-29983,-29977,-29974,-29968,-9530,-29981,-29982,-29984,-29985,-29985,-29985,-29988,-29989,-29990,-29989,-29989,-29990,-29990,-29991,-29992,-29992,-29995,-29996,-29996,-29997,-29997,-29996,-29996,-29997,-29997,-29998]} 1. d4 {[%emt 0:00:05]} Nf6 {[%emt 0:00:06]} 2. Nc3 {[%emt 0:00:09]} c5 {[%emt 0:00:42]} 3. dxc5 {[%emt 0:00:33]} Na6 {[%emt 0:00:36]} 4. e4 {[%emt 0:01:10][%cal Be2e4,Be4e5][%mdl 32]} Nxc5 {[%emt 0:06:40]} 5. e5 {[%emt 0:02:03]} Nfe4 $2 {[%emt 0:00:04] [#]} (5... Ng8 $16 6. Nf3 b6) 6. Nxe4 $1 $18 {[%emt 0:00:30] A45: Trompowsky Attack.} Nxe4 {[%emt 0:00:03] [#]} 7. Qd4 $1 {[%emt 0:01:53]} d5 {[%emt 0:05:07]} 8. f3 {[%emt 0:00:49] [#] White has a decisive advantage.} e6 $146 {[%emt 0:00:03] aiming for ...Bc5.} ({Predecessor:} 8... Qa5+ 9. c3 Nc5 10. b4 Qc7 11. bxc5 e6 12. Bb5+ Kd8 13. Bg5+ Be7 14. Bxe7+ Kxe7 {1-0 (25) Isaev,J (2296)-Ermolaev,E (2289) Chess.com INT 2020}) 9. Bb5+ {[%emt 0:01:41]} Bd7 {[%emt 0:03:23]} 10. Bxd7+ {[%emt 0:00:03]} Kxd7 {[%emt 0:00:01]} 11. Qa4+ {[%emt 0:00:31]} b5 {[%emt 0:00:22]} 12. Qxb5+ {[%emt 0:00:06]} Kc8 {[%emt 0:00:37]} 13. fxe4 {[%emt 0:01:46]} Qh4+ {[%emt 0:00:05]} 14. Kf1 {[%emt 0:00:25]} Qxe4 {[%emt 0:00:23]} 15. Nf3 {[%emt 0:02:11]} Be7 {[%emt 0:00:52]} 16. Bd2 {[%emt 0:01:16][%cal Bc1d2,Bd2b4,Bb4d6][%mdl 32]} Bd8 {[%emt 0:00:43]} 17. Bb4 {[%emt 0:02:03] And now Qc6+ would win.} Bc7 {[%emt 0:00:47]} 18. Bd6 {[%emt 0:02:52]} Qxc2 {[%emt 0:00:49]} 19. Qc5 {[%emt 0:00:25]} Qxc5 {[%emt 0:01:36]} 20. Bxc5 {[%emt 0:00:02]} f6 {[%emt 0:00:38]} 21. exf6 {[%emt 0:00:42]} gxf6 {[%emt 0:00:07]} 22. Rc1 {[%emt 0:00:03] Bd6 is the strong threat.} Kd7 {[%emt 0:00:08] Prevents Bd6.} 23. Kf2 {[%emt 0:02:17]} a5 {[%emt 0:00:30]} 24. Rhd1 {[%emt 0:00:53]} Rhg8 {[%emt 0:01:39]} 25. g3 {[%emt 0:00:45]} Rab8 {[%emt 0:00:21]} 26. b3 {[%emt 0:00:45]} Rb5 {[%emt 0:00:16][%cal Ob5c5] Strongly threatening ...Rxc5!} 27. Be3 {[%emt 0:00:54]} Bd6 {[%emt 0:00:26]} 28. Nd4 {[%emt 0:01:01]} Rb7 {[%emt 0:00:13]} 29. a4 {[%emt 0:00:51]} h5 {[%emt 0:00:08]} 30. Nb5 {[%emt 0:00:08]} Bb8 {[%emt 0:00:05]} 31. Bd2 {[%emt 0:02:42]} h4 {[%emt 0:00:42]} 32. gxh4 {[%emt 0:00:04]} Bxh2 {[%emt 0:00:03]} 33. Bxa5 {[%emt 0:00:24]} Bg3+ {[%emt 0:00:14]} 34. Kf1 {[%emt 0:00:53]} f5 {[%emt 0:00:34]} (34... Bxh4 $142 35. Rd3 Bg3) 35. Be1 {[%emt 0:00:53]} f4 {[%emt 0:00:54]} 36. Bxg3 {[%emt 0:00:25]} Rxg3 {[%emt 0:00:27]} 37. Rb1 {[%emt 0:01:21]} Rb8 {[%emt 0:10:10]} 38. Kf2 {[%emt 0:08:13] Black must now prevent Rg1.} Rbg8 {[%emt 0:02:03]} (38... Rh8 $142 39. Rh1 e5) 39. Rg1 {[%emt 0:00:33]} e5 {[%emt 0:00:04]} 40. Rxg3 {[%emt 0:00:04]} Rxg3 {[%emt 0:00:01][%mdl 4096] Endgame KRN-KR} 41. b4 {[%emt 0:01:57]} e4 {[%emt 0:00:06]} 42. Rd1 {[%emt 0:01:57]} e3+ {[%emt 0:02:00]} 43. Kf1 {[%emt 0:01:16]} Ke6 $2 {[%emt 0:02:07]} (43... f3 44. Nd4 (44. Rxd5+ Kc8 $18) 44... Rg2) 44. Nc7+ $2 {[%emt 0:01:34]} ({White has to play} 44. Ke2 $18 Rg2+ 45. Kd3) 44... Ke5 $11 {[%emt 0:00:03]} 45. Nxd5 {[%emt 0:00:38]} Rf3+ {[%emt 0:04:01]} 46. Ke1 {[%emt 0:00:32]} (46. Kg1 $16 Rg3+ 47. Kh2 (47. Kf1 Rf3+ 48. Kg2 Rg3+ 49. Kh2 e2 $16)) 46... Rh3 $1 {[%emt 0:00:22]} 47. Nc3 $2 {[%emt 0:00:17][%mdl 8192] White is now going downhill.} (47. Nxe3 $11 fxe3 48. a5 Rh1+ 49. Ke2 Rxh4 50. Rg1) 47... f3 {[%emt 0:00:13][%cal Rh3h1]} 48. Rd5+ {[%emt 0:00:11]} Ke6 {[%emt 0:00:07][%cal Rh3h1]} 49. Kd1 {[%emt 0:00:17]} Rh1+ {[%emt 0:00:11]} 50. Kc2 {[%emt 0:00:01]} f2 {[%emt 0:00:01]} 51. Rd3 {[%emt 0:00:17]} f1=Q {[%emt 0:00:20]} 52. Rxe3+ {[%emt 0:00:02]} Kd6 {[%emt 0:00:10]} 53. Re4 {[%emt 0:00:10]} Qc1+ {[%emt 0:00:38]} 54. Kb3 {[%emt 0:00:02]} Rh3 {[%emt 0:00:12]} 55. Rc4 {[%emt 0:00:14]} Qb1+ {[%emt 0:00:44]} 56. Ka3 {[%emt 0:00:01]} Qd3 {[%emt 0:00:09]} 57. Kb3 {[%emt 0:00:05]} Ke6 {[%emt 0:00:19]} 58. b5 {[%emt 0:00:11]} Rh1 {[%emt 0:00:02]} 59. Rc6+ {[%emt 0:00:27]} Kd7 {[%emt 0:00:09]} 60. Kb4 {[%emt 0:00:04]} Rxh4+ {[%emt 0:00:08]} 61. Ka5 {[%emt 0:00:15]} Rh8 {[%emt 0:00:23]} 62. Kb6 {[%emt 0:00:19]} Qd4+ {[%emt 0:00:06]} 63. Kb7 {[%emt 0:00:12]} Qf4 {[%emt 0:00:10]} 64. Kb6 {[%emt 0:00:04]} Rb8+ {[%emt 0:00:04]} 65. Ka5 {[%emt 0:00:02]} Ra8+ {[%emt 0:00:06]} 66. Ra6 {[%emt 0:00:17]} Qc7+ {[%emt 0:00:13]} 67. Kb4 {[%emt 0:00:04]} Rxa6 {[%emt 0:00:13]} 68. bxa6 {[%emt 0:00:02]} Qb6+ {[%emt 0:00:00]} 69. Nb5 {[%emt 0:00:08]} Qxa6 {[%emt 0:00:02] Black mates.} 70. Nc3 {[%emt 0:00:13]} Kc6 {[%emt 0:00:04]} 71. Nb5 {[%emt 0:00:05]} Qb6 {[%emt 0:00:06]} 72. Kc3 {[%emt 0:00:29]} Kc5 {[%emt 0:00:06]} 73. Kb3 {[%emt 0:00:14]} Qa5 {[%emt 0:00:03]} 74. Nc3 {[%emt 0:00:14]} Qb4+ {[%emt 0:00:02]} 75. Kc2 {[%emt 0:00:02]} Kc4 {[%emt 0:00:02]} 76. Nb1 {[%emt 0:00:13]} Qxa4+ {[%emt 0:00:03]} 77. Kb2 {[%emt 0:00:11]} Kd3 {[%emt 0:00:19]} 78. Na3 {[%emt 0:00:10]} Qb4+ {[%emt 0:00:11]} 79. Ka2 {[%emt 0:00:12]} Kc3 {[%emt 0:00:02][%csl Gc3][%cal Rb4b2]} 80. Nb1+ {[%emt 0:00:12]} Kc2 {[%emt 0:00:02][%csl Gc2][%cal Rb4b2]} 81. Na3+ {[%emt 0:00:04]} Kc1 {[%emt 0:00:01] Weighted Error Value: White=0.36/Black=0.49} 0-1

[Event "Slovakia Open 2022"]
[Site "Bratislava"]
[Date "2022.10.01"]
[Round "4.15"]
[White "Stevik, Patrik"]
[Black "Nemsak, Denis"]
[Result "1-0"]
[ECO "C40"]
[WhiteElo "2148"]
[BlackElo "2012"]
[Annotator "TA"]
[PlyCount "51"]
[EventDate "2022.09.30"]
[EventCountry "SVK"]
[SourceTitle "playchess.com"]
[Source "ChessBase"]
[SourceQuality "1"]
[TimeControl "2700+10"]

{[%evp 9,51,-46,-31,-68,-69,-111,-118,-240,-139,-170,-169,-170,-160,-161,-170,-156,-130,-129,-24,-53,-31,-12,134,118,125,127,193,208,382,386,620,451,516,501,516,536,642,638,747,717,848,837,1029,1022]} 1. Nf3 {[%emt 0:00:03]} f5 {[%emt 0:01:26]} 2. d3 {[%emt 0:00:05]} Nc6 {[%emt 0:00:08]} 3. e4 {[%emt 0:00:03]} e5 {[%emt 0:00:04]} 4. exf5 {[%emt 0:00:23]} d5 {[%emt 0:00:29]} 5. Bg5 {[%emt 0:01:52]} Be7 {[%emt 0:00:29]} 6. Bxe7 {[%emt 0:00:38] C40: Latvian and Elephant Gambits.} Ngxe7 {[%emt 0:00:20]} 7. g4 {[%emt 0:01:45]} h5 {[%emt 0:09:46]} 8. Nh4 {[%emt 0:02:16] [#]} (8. gxh5 $17 {might work better.} Qd6 9. Rg1) 8... g5 $146 {[%emt 0:05:04]} (8... hxg4 $19 9. Qxg4 Qd6) ({Predecessor:} 8... Qd6 9. Nc3 Qf6 10. Ng6 Nxg6 11. fxg6 Bxg4 12. Be2 Bxe2 13. Qxe2 O-O-O 14. O-O-O Qxg6 {1-0 (25) Khachatryan,T (1771)-Kirchner,M (1813) Willingen 2018}) 9. f6 {[%emt 0:08:51]} gxh4 {[%emt 0:04:20]} 10. fxe7 {[%emt 0:00:41]} Qxe7 {[%emt 0:00:01]} 11. gxh5 {[%emt 0:00:07]} Bf5 {[%emt 0:00:48]} 12. Be2 {[%emt 0:00:18]} Qb4+ {[%emt 0:05:27]} 13. Nd2 {[%emt 0:02:06]} Qxb2 {[%emt 0:00:13]} ({Better is} 13... Rf8 $17 {Strongly threatening ...Bh3.} 14. h3 O-O-O) 14. Rb1 $11 {[%emt 0:00:28][%cal Ba1b1,Bb1b7,Bb7c7,Bc7g7][%mdl 32]} Qxa2 {[%emt 0:00:02]} 15. Bg4 {[%emt 0:01:52]} Bh7 {[%emt 0:03:31]} (15... Nd4 $11 16. Bxf5 Nxf5) 16. Rxb7 $16 {[%emt 0:01:20]} Nd4 {[%emt 0:00:08]} 17. Rxc7 {[%emt 0:00:57] 0-0 is the strong threat.} Qa5 {[%emt 0:04:47] [#]} (17... O-O $16 {keeps fighting.}) 18. Rg7 $1 $18 {[%emt 0:00:50] Threatens to win with h6.} Rb8 $2 {[%emt 0:05:25]} (18... Kf8 {was worth a try.} 19. Rd7 Rd8) 19. O-O {[%emt 0:00:57]} Bf5 $2 {[%emt 0:00:39]} (19... Kf8) 20. Nf3 {[%emt 0:03:06] White is clearly winning.} Ne6 {[%emt 0:01:40]} 21. Bxf5 {[%emt 0:01:48]} Nxg7 {[%emt 0:00:08]} 22. Bg6+ {[%emt 0:00:03]} Kd8 {[%emt 0:00:33]} 23. Nxe5 {[%emt 0:00:07] [#] Hoping for Nc6+.} Kc7 {[%emt 0:00:12] Against Nc6} 24. Qg4 {[%emt 0:00:25] Qd7+ would kill now.} Rhd8 {[%emt 0:00:39] Inhibits Qd7+.} 25. Qxh4 {[%emt 0:00:24] And now Qe7+ would win.} Qb4 {[%emt 0:01:01] Inhibits Qe7+.} 26. Qf6 {[%emt 0:00:16] Weighted Error Value: White=0.27 (precise) /Black=0.83} 1-0

[Event "Slovakia Open 2022"]
[Site "Bratislava"]
[Date "2022.10.01"]
[Round "4.16"]
[White "Rosol, Philip"]
[Black "Yankelevich, Lev"]
[Result "0-1"]
[ECO "E12"]
[WhiteElo "1885"]
[BlackElo "2484"]
[Annotator "TA"]
[PlyCount "120"]
[EventDate "2022.09.30"]
[EventCountry "SVK"]
[SourceTitle "playchess.com"]
[Source "ChessBase"]
[SourceQuality "1"]
[TimeControl "2700+10"]

{[%evp 13,120,48,53,49,58,32,47,-20,18,26,39,20,20,28,50,44,51,50,74,74,74,74,74,56,100,88,119,109,120,114,139,142,162,163,163,163,164,164,161,164,158,125,146,136,216,128,120,76,93,91,117,110,112,109,115,112,128,127,186,178,186,8,8,8,19,0,0,-498,-453,-342,-239,-641,-620,-775,-744,-714,-425,-402,-264,-302,-285,-311,-297,-685,-662,-1496,-1420,-1842,-501,-29962,-29962,-29966,-29966,-29992,-29993,-29993,-29992,-29996,-29997,-29997,-29994,-29994,-29995,-29995,-29996,-29996,-29993,-29993,-29994]} 1. d4 {[%emt 0:00:06]} Nf6 {[%emt 0:14:17]} 2. c4 {[%emt 0:00:03]} e6 {[%emt 0:00:01]} 3. Nf3 {[%emt 0:00:05]} b6 {[%emt 0:00:22]} 4. a3 {[%emt 0:01:26]} Bb7 {[%emt 0:00:09]} 5. Nc3 {[%emt 0:00:12]} g6 {[%emt 0:00:01]} 6. Qc2 {[%emt 0:01:47]} Bg7 $1 {[%emt 0:00:31] 6...Bg7 scores better than 6...Bxf3.} 7. e4 {[%emt 0:00:28]} d6 {[%emt 0:00:10]} 8. Bd3 {[%emt 0:01:28] E12: Queen's Indian: Unusual White 4th moves, 4 a3, 4 Nc3 Bb7 5 a3 and 4 Nc3 Bb7 .} O-O {[%emt 0:00:07]} 9. Bg5 {[%emt 0:00:47] Threatens to win with e5.} h6 {[%emt 0:00:14]} 10. Bh4 {[%emt 0:00:35] [#]} (10. Bd2 $14) 10... Qe8 $146 {[%emt 0:02:22]} (10... g5 $5 {[%cal Rg5h4]} 11. Bg3 Nh5 $15) ({Predecessor:} 10... g5 11. Bg3 Nh5 12. d5 Nd7 13. O-O-O Nc5 14. dxe6 fxe6 15. e5 Nxd3+ 16. Qxd3 Nxg3 17. hxg3 dxe5 {0-1 (53) Hovhannisyan,M (2439)-Stefansson,H (2541) Batumi 2019}) 11. O-O-O {[%emt 0:01:45]} e5 {[%emt 0:00:12]} 12. Bxf6 {[%emt 0:08:36]} Bxf6 {[%emt 0:00:04]} 13. d5 {[%emt 0:00:06]} a5 {[%emt 0:00:09]} 14. g4 {[%emt 0:01:28]} Nd7 {[%emt 0:00:33]} 15. h4 {[%emt 0:01:27][%cal Bh2h4,Bh4h5][%mdl 32]} Bg7 {[%emt 0:00:09]} 16. h5 {[%emt 0:02:30]} Nf6 {[%emt 0:00:23]} 17. Rdg1 {[%emt 0:00:56] Strongly threatening g5.} g5 {[%emt 0:01:12]} 18. Qd2 {[%emt 0:02:22][%cal Of3g5]} Nh7 {[%emt 0:00:04]} 19. Ne1 {[%emt 0:01:28]} c6 {[%emt 0:00:13]} 20. Nc2 {[%emt 0:00:46]} Nf6 {[%emt 0:00:21]} 21. Ne3 {[%emt 0:00:47]} Rc8 {[%emt 0:00:22]} 22. Kb1 {[%emt 0:00:15]} Ba6 {[%emt 0:01:46]} 23. Nf5 {[%emt 0:01:14]} Qd8 {[%emt 0:00:02]} 24. f3 {[%emt 0:00:18]} Rc7 {[%emt 0:01:27]} 25. Rc1 {[%emt 0:00:30]} Bc8 {[%emt 0:00:13]} 26. Ne3 {[%emt 0:00:33] Pair of Knights!} Nd7 {[%emt 0:00:41]} 27. Rhd1 {[%emt 0:00:42]} Nc5 {[%emt 0:00:09]} 28. Bc2 {[%emt 0:00:10] Against Nb3} Bb7 {[%emt 0:01:07]} (28... cxd5 $16 29. Nexd5 (29. Ncxd5 Rb7 $16) (29. Qxd5 Ne6 $16) 29... Rd7) 29. Na4 {[%emt 0:02:14]} ({Better is} 29. b4 $18 cxd5 30. exd5 (30. Ncxd5 Bxd5 31. bxc5 Be6 $18) 30... axb4 31. axb4) 29... cxd5 $16 {[%emt 0:02:16]} 30. Nxc5 {[%emt 0:01:26]} Rxc5 {[%emt 0:01:19]} 31. exd5 {[%emt 0:00:12]} Re8 {[%emt 0:00:21]} 32. Be4 {[%emt 0:00:42]} (32. Qd3 e4 33. fxe4 (33. Qe2 b5 $11) 33... Qf6 $14) 32... Qd7 {[%emt 0:01:06]} 33. Nf5 {[%emt 0:01:12]} Ba6 {[%emt 0:00:37]} 34. Bd3 {[%emt 0:01:38]} Bf8 {[%emt 0:01:35]} 35. Qe2 {[%emt 0:00:36]} f6 {[%emt 0:00:25]} (35... Qd8 $16 {was called for.} 36. Ng3 Bg7) 36. Qe4 {[%emt 0:00:21][%cal Of5d6] Hoping for Nxd6!} Rb8 {[%emt 0:00:18]} 37. b4 $2 {[%emt 0:02:24]} (37. a4 $18) 37... axb4 $11 {[%emt 0:00:44]} 38. axb4 {[%emt 0:00:04]} b5 $1 {[%emt 0:03:18] [#] ...bxc4 is the strong threat.} 39. cxb5 {[%emt 0:01:55]} Bxb5 {[%emt 0:00:03]} 40. Ne3 $2 {[%emt 0:01:10][%mdl 8192] White is on the road to losing.} (40. Rxc5 $11 {and White stays safe.} dxc5 41. Kc1 (41. Bxb5 Rxb5 42. Kc1 Rxb4 $19)) 40... Bxd3+ {[%emt 0:02:51]} (40... Rxc1+ 41. Kxc1 Bxd3 42. Rxd3 $11) 41. Rxd3 {[%emt 0:00:02]} Qa4 {[%emt 0:00:26] Against Ra3. Really sharp!} 42. Nc2 {[%emt 0:01:55]} (42. Qg6+ Kh8 43. Rxc5 dxc5 44. Nc2 (44. Qxf6+ $2 Bg7 $19) 44... cxb4 45. Qe4 (45. Qxf6+ $2 Bg7 $19)) 42... f5 $19 {[%emt 0:01:55]} ({Worse is} 42... Rxc2 43. Qg6+ Kh8 44. Rxc2 Qxb4+ 45. Kc1 Qe1+ 46. Rd1 Qe3+ 47. Rdd2 $19) 43. Qe1 {[%emt 0:01:05]} Rc4 {[%emt 0:00:34]} 44. Ra3 {[%emt 0:01:03]} Qb5 {[%emt 0:00:59]} 45. gxf5 {[%emt 0:00:28]} Qxd5 {[%emt 0:00:03] And now ...Qf7 would win.} 46. f6 {[%emt 0:00:43]} Qe6 {[%emt 0:00:24]} 47. Qe2 {[%emt 0:00:23]} d5 {[%emt 0:00:05][%cal Bd6d5,Bd5e4][%mdl 32]} 48. Qd3 $2 {[%emt 0:00:08]} (48. Rd1) 48... e4 {[%emt 0:01:09]} 49. fxe4 {[%emt 0:00:12]} dxe4 {[%emt 0:00:02]} 50. Qg3 {[%emt 0:00:06]} Rbc8 {[%emt 0:00:09]} (50... Rcxb4+ $142 51. Nxb4 Rxb4+ 52. Ka1 Qxf6+ 53. Qc3 Qf7) 51. Ra7 {[%emt 0:00:17] [#]} (51. Qb3 $19 Kh8 52. Qb2 (52. Rf1 $2 Qd6 $19)) 51... Rc3 {[%emt 0:00:25] Black mates.} 52. f7+ {[%emt 0:00:19]} Kh8 {[%emt 0:00:06]} 53. Qf2 {[%emt 0:00:16]} Rb3+ {[%emt 0:00:06]} 54. Ka1 {[%emt 0:00:04]} Bg7+ {[%emt 0:00:03]} 55. Nd4 {[%emt 0:00:18]} Rxc1+ {[%emt 0:01:41]} 56. Ka2 {[%emt 0:00:10]} Rxb4+ {[%emt 0:01:58]} 57. Ka3 {[%emt 0:00:09]} Rc3+ {[%emt 0:01:04]} 58. Kxb4 {[%emt 0:00:11]} Qc4+ {[%emt 0:00:01]} 59. Ka5 {[%emt 0:00:02]} Ra3+ {[%emt 0:00:01]} 60. Kb6 {[%emt 0:00:02]} Bxd4+ {[%emt 0:00:05] Weighted Error Value: White=1.04/Black=0.31} 0-1

[Event "Slovakia Open 2022"]
[Site "Bratislava"]
[Date "2022.10.01"]
[Round "4.17"]
[White "Kushko, Dmitriy"]
[Black "Krajnak, Robert"]
[Result "1-0"]
[ECO "A30"]
[WhiteElo "2302"]
[BlackElo "1931"]
[Annotator "TA"]
[PlyCount "55"]
[EventDate "2022.09.30"]
[EventCountry "SVK"]
[SourceTitle "playchess.com"]
[Source "ChessBase"]
[SourceQuality "1"]
[TimeControl "2700+10"]

{[%evp 15,55,46,45,47,47,52,82,75,112,98,102,97,96,0,0,0,13,0,8,-12,-13,0,9,12,139,120,675,681,666,452,29990,29991,29991,29992,29992,29990,29997,29997,29997,29998,29998,29999]} 1. g3 {[%emt 0:02:41]} c5 {[%emt 0:06:56]} 2. Bg2 {[%emt 0:00:07]} Nf6 {[%emt 0:00:09]} 3. Nf3 {[%emt 0:00:21]} e6 {[%emt 0:00:01]} 4. O-O {[%emt 0:00:15]} Be7 {[%emt 0:00:06]} 5. c4 {[%emt 0:00:05]} O-O {[%emt 0:00:05]} 6. d4 {[%emt 0:00:10]} cxd4 {[%emt 0:00:03]} 7. Nxd4 {[%emt 0:00:02]} a6 {[%emt 0:00:14]} 8. Nc3 {[%emt 0:00:22] 8.b3 is not played anymore.} d6 {[%emt 0:00:07]} 9. e4 {[%emt 0:04:09] A30: Symmetrical English: Double Fianchetto and Hedgehog.} Qc7 {[%emt 0:00:12]} 10. Be3 {[%emt 0:02:03]} Rd8 {[%emt 0:00:08]} 11. Rc1 {[%emt 0:00:24] [#] White is better.} Bf8 $146 {[%emt 0:01:46]} ({Predecessor:} 11... Nbd7 12. f4 Nf8 13. g4 h6 14. g5 hxg5 15. fxg5 N6d7 16. Rf3 Ne5 17. Rh3 Neg6 {1-0 (26) Hansen,S (2549)-Soors,S (2405) Helsingor 2013}) 12. g4 {[%emt 0:01:04][%cal Bg3g4,Bg4g5][%mdl 32]} Nc6 {[%emt 0:04:42]} 13. g5 {[%emt 0:02:27]} Nd7 {[%emt 0:02:58]} 14. Nd5 {[%emt 0:12:39]} Qb8 $1 $11 {[%emt 0:00:12]} ({Much less strong is} 14... exd5 15. cxd5 Nde5 16. Nf5 $16 (16. dxc6 bxc6 17. f4 c5 $16)) 15. Nc3 {[%emt 0:01:04]} Nxd4 {[%emt 0:01:42]} 16. Bxd4 {[%emt 0:03:47]} b5 {[%emt 0:00:26]} 17. cxb5 {[%emt 0:00:16]} axb5 {[%emt 0:00:01]} 18. b4 $1 $36 {[%emt 0:00:02][%mdl 2048] Black is under pressure.} Ba6 {[%emt 0:00:55]} 19. f4 {[%emt 0:00:34]} Nb6 {[%emt 0:02:50]} (19... e5 $11 20. Be3 exf4 21. Rxf4 Ne5) 20. Qh5 $16 {[%emt 0:01:53] Threatens to win with Rf3. White has more active pieces.} Nc4 $2 {[%emt 0:00:33][%mdl 8192] [#] A mistake that costs the game.} (20... e5 $16 21. Bf2 (21. fxe5 dxe5 22. Qxf7+ Kh8 $16) 21... Nc4) 21. Rf3 $1 $18 {[%emt 0:00:26][%cal Bf1f3,Bf3g3,Bg3g7][%mdl 32] Strongly threatening Rh3.} e5 {[%emt 0:02:05] [#]} 22. Nd5 $1 {[%emt 0:04:09][%cal Of3h3] Rh3! is the strong threat.} exd4 {[%emt 0:01:31] [#]} (22... Bb7 $18) (22... Bc8 23. f5) 23. Nf6+ $1 {[%emt 0:00:02][%mdl 512] White mates.} gxf6 {[%emt 0:00:19]} 24. gxf6 {[%emt 0:00:02]} Kh8 {[%emt 0:07:31]} 25. Rg3 {[%emt 0:00:01]} d5 {[%emt 0:02:21]} 26. Qg5 {[%emt 0:00:44][%csl Gg3][%cal Rg5g8]} Bh6 {[%emt 0:00:18]} 27. Qxh6 {[%emt 0:00:02][%csl Gf6,Gg3][%cal Rh6g7]} Rg8 {[%emt 0:00:02]} 28. Rg7 {[%emt 0:00:02] Weighted Error Value: White=0.06 (flawless) /Black=0.54} 1-0